bitfinex/quotes_SOLUSD_20220302
["timestamp","ask_amount","ask_price","bid_price","bid_amount"]
[1646227767000,20.6192,102.67,102.62,143.73251347]
[1646227767206,20.6192,102.67,102.62,143.98251347]
[1646227767803,6.0,102.67,102.62,143.98251347]
[1646227768004,33.24207078,102.69,102.62,143.98251347]
[1646227769304,33.24207078,102.69,102.62,202.07251347]
[1646227769503,14.6166,102.69,102.62,202.07251347]
[1646227770504,14.6166,102.69,102.62,45.92251347]
[1646227771604,6.0,102.68,102.62,202.07251347]
[1646227771806,33.23907078,102.71,102.62,202.07251347]
[1646227772004,14.6136,102.71,102.62,202.07251347]
[1646227772207,48.2587,102.72,102.64,156.15]
[1646227772408,48.2587,102.72,102.65,148.38965862]
[1646227772609,48.2587,102.72,102.65,148.63965862]
[1646227773406,18.62547078,102.75,102.65,206.72965862]
[1646227773806,14.6108,102.73,102.65,206.72965862]
[1646227775210,67.32807078,102.75,102.65,221.33755862]
[1646227775211,33.23337078,102.75,102.65,221.33755862]
[1646227775410,33.23337078,102.75,102.69,98.06]
[1646227775411,14.6079,102.75,102.69,98.06]
[1646227775613,14.6079,102.75,102.7,55.29367603]
[1646227775810,14.6079,102.75,102.7,55.54367603]
[1646227776110,14.6079,102.75,102.64,14.4229]
[1646227776309,14.6079,102.75,102.65,6.0]
[1646227776509,33.23337078,102.75,102.65,6.25]
[1646227776709,33.23337078,102.75,102.65,6.0]
[1646227777112,6.0,102.74,102.66,209.50263205]
[1646227777315,14.6098,102.73,102.67,104.06]
[1646227777512,14.6098,102.73,102.68,59.8285628]
[1646227778114,14.6098,102.73,102.68,60.0785628]
[1646227778714,14.6098,102.73,102.68,0.25]
[1646227778913,14.6098,102.73,102.67,6.0]
[1646227778914,18.62547078,102.77,102.67,0.25]
[1646227779115,6.0,102.76,102.65,6.25]
[1646227779314,112.9,102.79,102.7,58.09]
[1646227779513,6.0,102.78,102.7,0.25]
[1646227780214,20.6028,102.78,102.7,0.25]
[1646227780414,20.6028,102.78,102.7,49.12762092]
[1646227780615,20.8528,102.78,102.7,49.12762092]
[1646227780815,39.47827078,102.78,102.7,49.12762092]
[1646227781016,22.26337122,102.77,102.7,0.25]
[1646227781215,14.6072,102.75,102.67,6.25]
[1646227781418,14.6072,102.75,102.66,47.4815]
[1646227781618,36.87057122,102.75,102.66,47.4815]
[1646227781817,55.496042,102.75,102.66,47.4815]
[1646227782017,55.496042,102.75,102.66,91.35045242]
[1646227782440,55.496042,102.75,102.66,47.4815]
[1646227782619,60.8257893,102.75,102.64,24.6832]
[1646227782820,2.3135047,102.74,102.64,24.6832]
[1646227783018,14.6152,102.71,102.62,24.0198]
[1646227783419,14.6152,102.71,102.63,49.50714908]
[1646227784121,14.6152,102.71,102.63,107.59714908]
[1646227784319,36.87417122,102.73,102.64,156.15]
[1646227784520,14.6108,102.73,102.65,116.58055308]
[1646227785422,14.6108,102.73,102.65,116.83055308]
[1646227786422,14.6108,102.73,102.65,214.64055308]
[1646227787027,14.6108,102.73,102.65,58.49055308]
[1646227787624,14.8608,102.73,102.65,58.74055308]
[1646227788226,37.12417122,102.73,102.65,58.49055308]
[1646227788525,6.0,102.72,102.6,112.5705]
[1646227788726,14.6168,102.69,102.61,6.0]
[1646227789326,14.6168,102.69,102.62,43.53473057]
[1646227789527,14.6168,102.69,102.63,6.0]
[1646227789726,14.8668,102.69,102.64,58.0193398]
[1646227789948,14.8668,102.69,102.64,58.2693398]
[1646227791128,14.8668,102.69,102.6,14.5105]
[1646227791330,16.26244371,102.69,102.6,14.5105]
[1646227791628,43.12718257,102.68,102.6,14.5105]
[1646227791827,14.6207,102.66,102.6,14.5105]
[1646227792327,14.6207,102.66,102.61,43.0719595]
[1646227792736,14.6207,102.66,102.61,43.3219595]
[1646227793633,14.6179,102.68,102.61,199.4719595]
[1646227793839,49.4357,102.69,102.61,199.4719595]
[1646227795040,64.0513,102.69,102.61,199.4719595]
[1646227796238,64.3013,102.69,102.61,199.4719595]
[1646227798559,64.3013,102.69,102.61,43.0719595]
[1646227798855,110.73935017,102.69,102.61,43.0719595]
[1646227799054,6.0,102.68,102.61,43.0719595]
[1646227799255,14.6197,102.67,102.61,43.0719595]
[1646227800657,14.6197,102.67,102.6,14.5105]
[1646227801059,14.6197,102.67,102.6,14.7605]
[1646227801459,14.6197,102.67,102.6,14.5105]
[1646227801662,14.6197,102.67,102.6,64.18744731]
[1646227802159,16.9332047,102.67,102.6,14.5105]
[1646227802360,16.9332047,102.67,102.58,52.3432]
[1646227802361,16.9332047,102.67,102.58,3.896]
[1646227802562,16.9332047,102.67,102.58,18.3339]
[1646227802961,17.1832047,102.67,102.58,18.3339]
[1646227803261,17.1832047,102.67,102.59,54.56010392]
[1646227803462,17.1832047,102.67,102.54,28.57184003]
[1646227803463,176.17751933,102.67,102.54,14.4828]
[1646227803662,14.6276,102.63,102.55,6.0]
[1646227804061,6.0,102.62,102.54,112.5428]
[1646227804261,6.0,102.62,102.54,72.5728]
[1646227804463,117.09224547,102.64,102.55,108.61040358]
[1646227804663,24.2091,102.64,102.55,108.61040358]
[1646227804863,23.7799,102.65,102.55,111.15944361]
[1646227805066,82.91875017,102.68,102.58,156.15]
[1646227805264,6.0,102.67,102.59,207.26130515]
[1646227805467,6.0,102.67,102.59,207.51130515]
[1646227805468,9.896,102.67,102.59,207.51130515]
[1646227805666,24.8705,102.68,102.59,207.51130515]
[1646227806066,20.6192,102.67,102.59,51.36130515]
[1646227806471,42.62573838,102.67,102.59,51.36130515]
[1646227806869,64.81394547,102.67,102.59,51.36130515]
[1646227807069,68.95994547,102.67,102.56,51.7112]
[1646227807268,3.898,102.66,102.56,51.7112]
[1646227807468,14.6265,102.63,102.54,14.4828]
[1646227807671,14.6265,102.63,102.55,6.0]
[1646227808067,13.9265,102.63,102.56,48.63264673]
[1646227808669,13.9265,102.63,102.56,48.88264673]
[1646227809267,13.9265,102.63,102.56,48.63264673]
[1646227809673,13.9265,102.63,102.56,146.69264673]
[1646227810071,84.79183838,102.65,102.56,204.78264673]
[1646227810277,88.68983838,102.65,102.56,204.78264673]
[1646227810471,84.79183838,102.65,102.56,204.78264673]
[1646227810672,14.6223,102.65,102.56,204.78264673]
[1646227810871,50.77503838,102.68,102.58,156.15]
[1646227811070,50.77503838,102.68,102.59,215.47375979]
[1646227811271,6.0,102.67,102.59,215.72375979]
[1646227811470,2.3135047,102.68,102.59,215.72375979]
[1646227811669,49.79483838,102.71,102.62,209.84402879]
[1646227811870,49.79483838,102.71,102.62,210.09402879]
[1646227812070,45.89883838,102.71,102.62,210.09402879]
[1646227812972,6.0,102.7,102.62,210.09402879]
[1646227813171,45.89883838,102.71,102.62,210.09402879]
[1646227813372,23.8923,102.71,102.62,210.09402879]
[1646227813570,23.8923,102.71,102.64,156.15]
[1646227813770,22.00653838,102.73,102.65,150.1753817]
[1646227813971,22.00653838,102.73,102.65,150.4253817]
[1646227814172,22.00653838,102.73,102.65,52.3653817]
[1646227814471,22.00653838,102.73,102.65,150.4253817]
[1646227814871,48.08974547,102.73,102.65,52.3653817]
[1646227815171,14.6137,102.71,102.65,52.3653817]
[1646227815573,14.6137,102.71,102.65,150.4253817]
[1646227815774,22.00653838,102.73,102.65,150.4253817]
[1646227815972,22.00653838,102.73,102.65,208.5153817]
[1646227816172,22.00653838,102.73,102.65,214.4293817]
[1646227816774,24.2597,102.74,102.65,214.4293817]
[1646227816973,68.28084547,102.75,102.65,214.4293817]
[1646227816974,46.09263838,102.75,102.68,203.06669664]
[1646227817173,22.18820709,102.77,102.68,203.31669664]
[1646227817375,6.0,102.76,102.68,203.31669664]
[1646227817573,6.0,102.76,102.7,98.06]
[1646227817776,112.9,102.78,102.71,149.41392734]
[1646227817977,112.9,102.78,102.71,149.66392734]
[1646227818177,112.9,102.78,102.71,207.75392734]
[1646227818977,0.48872254,102.8,102.71,207.75392734]
[1646227819180,0.48872254,102.8,102.73,156.15]
[1646227819381,0.48872254,102.8,102.76,58.83946395]
[1646227819680,0.00872254,102.8,102.78,214.27993573]
[1646227819879,0.00872254,102.8,102.79,104.06]
[1646227820079,0.00872254,102.8,102.79,162.4]
[1646227821281,0.00872254,102.8,102.79,104.31]
[1646227821680,0.00872254,102.8,102.79,6.25]
[1646227822380,0.00872254,102.8,102.79,0.25]
[1646227822583,0.00872254,102.8,102.78,58.12993573]
[1646227823987,0.00872254,102.8,102.78,58.37993573]
[1646227826687,0.00872254,102.8,102.79,104.06]
[1646227826889,0.00872254,102.8,102.79,64.34]
[1646227827088,0.00872254,102.8,102.79,6.25]
[1646227828191,0.00872254,102.8,102.79,54.8194]
[1646227828388,0.00872254,102.8,102.79,115.45844003]
[1646227828590,0.00872254,102.8,102.79,225.05844003]
[1646227830090,14.5841,102.92,102.79,225.05844003]
[1646227830291,26.6437,102.93,102.82,47.10039527]
[1646227830490,112.9,102.94,102.84,52.99087523]
[1646227830694,112.9,102.94,102.86,53.46023781]
[1646227830891,112.9,102.94,102.86,53.71023781]
[1646227831092,135.40453503,102.94,102.87,64.09]
[1646227831294,22.50453503,102.94,102.87,64.09]
[1646227831493,25.39019845,102.97,102.88,54.4698798]
[1646227831693,25.39019845,102.97,102.9,50.02755036]
[1646227831892,25.39019845,102.97,102.92,56.54693901]
[1646227832092,25.39019845,102.97,102.94,59.49118803]
[1646227832292,25.39019845,102.97,102.94,0.25]
[1646227832495,3.03219997,102.96,102.89,6.0]
[1646227832895,2.3135047,102.95,102.89,6.0]
[1646227833196,24.09717029,102.95,102.86,53.768]
[1646227833393,21.78366559,102.95,102.87,48.20828744]
[1646227833595,22.51334219,102.98,102.89,53.98753374]
[1646227833800,22.51334219,102.98,102.91,56.67112742]
[1646227833997,2.3135047,102.98,102.91,56.67112742]
[1646227834297,38.67317029,102.98,102.91,0.25]
[1646227834495,38.67317029,102.98,102.88,6.0]
[1646227834496,56.97491643,102.98,102.88,0.25]
[1646227834696,8.3135047,102.97,102.87,6.0]
[1646227835101,44.14872112,102.96,102.87,54.57280408]
[1646227835299,14.58,102.95,102.87,54.57280408]
[1646227835701,56.87405446,102.95,102.87,6.0]
[1646227835899,21.10769553,102.94,102.84,3.886]
[1646227836099,21.10769553,102.94,102.85,104.06]
[1646227836303,2.5635047,102.94,102.85,6.0]
[1646227836500,2.3135047,102.94,102.84,20.5781]
[1646227836700,2.3135047,102.94,102.85,60.11618936]
[1646227836901,28.12178654,102.96,102.87,51.50388016]
[1646227837102,28.12178654,102.96,102.87,51.75388016]
[1646227837301,20.37767749,102.95,102.87,51.75388016]
[1646227837702,14.5815,102.94,102.87,0.25]
[1646227837901,14.8315,102.94,102.84,10.136]
[1646227838101,18.54525099,102.94,102.84,6.25]
[1646227838303,6.0,102.93,102.84,6.25]
[1646227838714,8.3135047,102.93,102.85,43.0133501]
[1646227838915,43.27488219,102.93,102.85,43.2633501]
[1646227839116,28.69118219,102.93,102.85,43.2633501]
[1646227839315,20.37767749,102.95,102.85,43.2633501]
[1646227839717,2.3135047,102.96,102.87,44.99002423]
[1646227839915,6.0,102.95,102.89,59.95825558]
[1646227840318,44.84407749,102.95,102.85,0.25]
[1646227840823,20.5804,102.95,102.85,0.25]
[1646227841018,20.5804,102.95,102.85,98.06]
[1646227841219,20.5804,102.95,102.88,58.09]
[1646227841429,20.5804,102.95,102.89,57.44655453]
[1646227841622,20.5804,102.95,102.89,57.69655453]
[1646227842020,40.95807749,102.95,102.89,57.69655453]
[1646227842721,20.8304,102.95,102.89,57.69655453]
[1646227843724,20.5804,102.95,102.89,57.69655453]
[1646227843923,20.5804,102.95,102.89,155.75655453]
[1646227844123,20.5804,102.95,102.89,57.69655453]
[1646227844622,40.95807749,102.95,102.89,57.69655453]
[1646227844823,40.95807749,102.95,102.89,0.25]
[1646227845024,43.27158219,102.95,102.86,24.7138]
[1646227845424,43.52158219,102.95,102.86,24.7138]
[1646227845723,11.54,102.94,102.84,9.886]
[1646227845927,11.54,102.94,102.81,26.5775]
[1646227846124,128.84851615,102.91,102.81,26.5775]
[1646227846327,11.54,102.9,102.79,3.888]
[1646227846524,71.58465211,102.9,102.73,11.54]
[1646227846724,2.3135047,102.89,102.74,27.2588]
[1646227846925,71.60717968,102.89,102.75,114.51532179]
[1646227847126,71.60717968,102.89,102.77,213.44700244]
[1646227847325,14.5933,102.87,102.79,47.28843177]
[1646227847825,2.3135047,102.87,102.79,105.37843177]
[1646227848124,45.3901,102.94,102.85,58.09]
[1646227848326,14.5827,102.93,102.86,49.70356634]
[1646227848528,14.5827,102.93,102.86,49.95356634]
[1646227848924,3.887,102.92,102.86,49.95356634]
[1646227849325,14.5827,102.93,102.86,49.95356634]
[1646227849525,14.5827,102.93,102.86,206.10356634]
[1646227849927,14.5794,102.95,102.86,206.10356634]
[1646227850727,14.5794,102.95,102.86,49.95356634]
[1646227850928,33.06083594,102.95,102.82,52.3852]
[1646227851132,43.80381609,102.94,102.83,6.0]
[1646227851330,14.5855,102.91,102.83,6.0]
[1646227851731,14.8355,102.91,102.82,48.4982]
[1646227851931,14.8355,102.91,102.83,52.40737535]
[1646227852130,14.8355,102.91,102.83,150.46737535]
[1646227852333,14.8355,102.91,102.83,52.40737535]
[1646227853431,14.5877,102.89,102.83,52.40737535]
[1646227853832,14.5877,102.89,102.83,208.55737535]
[1646227854230,14.5877,102.89,102.83,208.80737535]
[1646227854631,6.0,102.9,102.83,208.80737535]
[1646227854832,14.5851,102.91,102.83,208.80737535]
[1646227855434,14.8351,102.91,102.83,208.80737535]
[1646227855834,14.8351,102.91,102.83,52.65737535]
[1646227856035,6.0,102.9,102.8,3.888]
[1646227856239,14.5913,102.87,102.79,51.5209]
[1646227856435,14.5913,102.87,102.79,47.6329]
[1646227856938,14.5913,102.87,102.8,42.81786296]
[1646227857534,14.5913,102.87,102.8,43.06786296]
[1646227858540,2.3135047,102.86,102.77,3.888]
[1646227858736,14.5953,102.84,102.77,3.888]
[1646227859538,14.5953,102.84,102.78,57.91012269]
[1646227860138,20.5957,102.83,102.78,57.91012269]
[1646227861137,20.5957,102.83,102.77,3.888]
[1646227861336,24.30776015,102.83,102.77,3.888]
[1646227862337,24.30776015,102.83,102.72,23.2548]
[1646227862536,81.05176015,102.83,102.68,14.2938]
[1646227862737,81.05176015,102.83,102.69,53.7608]
[1646227862939,81.05176015,102.83,102.7,156.15]
[1646227862940,84.94376015,102.83,102.7,156.15]
[1646227863138,84.94376015,102.83,102.71,6.0]
[1646227863336,84.94376015,102.83,102.72,52.40126852]
[1646227863541,95.11148667,102.83,102.72,52.40126852]
[1646227863736,95.11148667,102.83,102.72,150.46126852]
[1646227864437,95.11148667,102.83,102.72,208.55126852]
[1646227864837,91.21948667,102.83,102.72,208.55126852]
[1646227865539,91.21948667,102.83,102.72,150.46126852]
[1646227865839,91.21948667,102.83,102.72,52.65126852]
[1646227866441,14.6038,102.79,102.72,52.65126852]
[1646227866841,14.6038,102.79,102.72,52.40126852]
[1646227867041,2.3135047,102.78,102.72,52.40126852]
[1646227868040,20.6041,102.77,102.72,52.40126852]
[1646227868240,20.6041,102.77,102.72,52.65126852]
[1646227868440,20.6041,102.77,102.72,0.25]
[1646227868640,20.6041,102.77,102.69,204.1608]
[1646227869042,20.6041,102.77,102.69,48.0108]
[1646227869445,20.6041,102.77,102.7,58.48031715]
[1646227869646,20.6041,102.77,102.7,58.73031715]
[1646227870047,20.8541,102.77,102.7,58.73031715]
[1646227871250,20.8541,102.77,102.7,58.48031715]
[1646227871857,36.4526294,102.77,102.64,48.2478]
[1646227872048,48.06965541,102.76,102.65,6.0]
[1646227872248,14.6115,102.73,102.65,6.0]
[1646227872849,14.6115,102.73,102.66,48.70254947]
[1646227873249,14.6115,102.73,102.64,48.2478]
[1646227873651,26.1515,102.73,102.64,204.3978]
[1646227874250,26.1515,102.73,102.65,47.74491883]
[1646227875058,26.1515,102.73,102.66,98.06]
[1646227875256,14.6115,102.73,102.66,156.15]
[1646227875752,14.6115,102.73,102.66,0.25]
[1646227875956,14.6115,102.73,102.65,47.99491883]
[1646227876266,20.6116,102.72,102.65,47.99491883]
[1646227876454,20.6116,102.72,102.65,47.74491883]
[1646227878755,20.6116,102.72,102.65,47.99491883]
[1646227880757,20.8616,102.72,102.65,47.99491883]
[1646227883455,20.8616,102.72,102.65,47.74491883]
[1646227883658,23.1751047,102.72,102.61,23.399]
[1646227883857,75.30730103,102.72,102.61,23.399]
[1646227884056,11.54,102.71,102.61,23.399]
[1646227884256,14.6193,102.68,102.61,23.399]
[1646227884458,14.8693,102.68,102.61,23.399]
[1646227884660,14.8693,102.68,102.6,24.3944]
[1646227884661,14.8693,102.68,102.6,73.23082533]
[1646227884858,24.2568047,102.68,102.6,73.23082533]
[1646227885058,24.2568047,102.68,102.6,48.83642533]
[1646227885258,28.1528047,102.68,102.6,48.83642533]
[1646227885860,28.1528047,102.68,102.56,47.1202]
[1646227886058,14.6249,102.64,102.56,47.1202]
[1646227886858,14.6249,102.64,102.57,53.46472757]
[1646227887876,6.0,102.63,102.57,53.46472757]
[1646227888260,14.6246,102.63,102.57,53.46472757]
[1646227888462,84.4517,102.67,102.57,209.61472757]
[1646227888666,72.9117,102.67,102.57,209.61472757]
[1646227889261,72.9117,102.67,102.58,64.09]
[1646227889462,72.9117,102.67,102.58,64.34]
[1646227889662,6.0,102.66,102.58,64.34]
[1646227889865,6.0,102.66,102.58,162.4]
[1646227890071,38.7907,102.67,102.58,164.94904003]
[1646227890263,38.7907,102.67,102.58,106.85904003]
[1646227890464,6.0,102.66,102.58,2.54904003]
[1646227890664,6.0,102.66,102.57,53.46472757]
[1646227891062,14.6228,102.64,102.57,53.46472757]
[1646227891667,14.8728,102.64,102.57,53.71472757]
[1646227892064,20.6247,102.63,102.57,53.71472757]
[1646227892468,20.6247,102.63,102.57,53.46472757]
[1646227894069,20.6247,102.63,102.57,53.71472757]
[1646227895169,20.8747,102.63,102.57,53.71472757]
[1646227895369,20.8747,102.63,102.57,0.25]
[1646227895574,20.8747,102.63,102.56,47.3702]
[1646227896372,20.8747,102.63,102.57,49.43267098]
[1646227896573,20.8747,102.63,102.57,49.68267098]
[1646227896775,20.8747,102.63,102.57,49.43267098]
[1646227897773,20.8747,102.63,102.54,14.9159]
[1646227897973,34.72833008,102.63,102.54,14.9159]
[1646227898773,34.72833008,102.63,102.55,44.37291145]
[1646227899378,34.72833008,102.63,102.55,200.52291145]
[1646227899574,20.8747,102.63,102.55,200.52291145]
[1646227899974,20.8747,102.63,102.55,102.46291145]
[1646227900176,20.8747,102.63,102.55,102.71291145]
[1646227900875,20.8747,102.63,102.55,44.62291145]
[1646227901074,20.8747,102.63,102.55,44.37291145]
[1646227901277,24.7737,102.63,102.54,14.9159]
[1646227901478,22.32960812,102.62,102.54,14.9159]
[1646227901779,14.6304,102.6,102.54,14.9159]
[1646227902278,14.6304,102.6,102.55,49.89872636]
[1646227903099,14.6304,102.6,102.49,18.5291]
[1646227903300,2.31592163,102.59,102.48,51.3389]
[1646227903499,14.6355,102.56,102.49,6.0]
[1646227904101,14.6355,102.56,102.5,50.84417934]
[1646227905102,14.8855,102.56,102.5,50.84417934]
[1646227906505,0.25,102.56,102.5,221.77017934]
[1646227906705,6.0,102.57,102.5,65.62017934]
[1646227906903,23.6481,102.58,102.5,65.62017934]
[1646227907103,23.6481,102.58,102.5,65.87017934]
[1646227907703,6.0,102.57,102.5,65.87017934]
[1646227908102,6.25,102.57,102.5,65.87017934]
[1646227908303,6.25,102.57,102.5,65.62017934]
[1646227908502,6.25,102.57,102.5,14.776]
[1646227908703,14.6358,102.55,102.47,14.3411]
[1646227908903,11.54,102.54,102.43,3.902]
[1646227909105,110.61776304,102.54,102.43,18.6874]
[1646227909304,82.61150812,102.54,102.43,76.7774]
[1646227909508,46.9219,102.54,102.44,107.04064332]
[1646227909707,2.31592189,102.57,102.45,3.902]
[1646227910003,39.0155,102.57,102.46,156.15]
[1646227910208,39.0155,102.57,102.45,61.992]
[1646227910407,14.6364,102.55,102.45,3.902]
[1646227910604,14.6364,102.55,102.45,52.0504]
[1646227910804,14.6364,102.55,102.45,48.1484]
[1646227911605,16.95232189,102.55,102.45,48.1484]
[1646227911804,43.39011549,102.55,102.45,48.1484]
[1646227912004,54.93011549,102.55,102.45,48.1484]
[1646227912703,53.61452189,102.55,102.45,48.1484]
[1646227913504,77.76413001,102.55,102.44,48.95064332]
[1646227913703,77.67784566,102.55,102.44,150.91264332]
[1646227913906,53.61452189,102.55,102.44,150.91264332]
[1646227914104,53.61452189,102.55,102.44,52.85264332]
[1646227914307,55.28173258,102.55,102.44,52.85264332]
[1646227914509,3.902,102.54,102.44,3.902]
[1646227914706,14.6447,102.51,102.44,3.902]
[1646227915506,14.6447,102.51,102.45,54.85193674]
[1646227916107,14.6446,102.49,102.44,3.902]
[1646227917505,14.6446,102.49,102.41,46.6932]
[1646227917708,29.95006571,102.49,102.41,46.6932]
[1646227917910,29.95006571,102.49,102.35,5.0]
[1646227918109,14.6504,102.45,102.35,106.2807]
[1646227918317,50.15906571,102.49,102.35,108.82974003]
[1646227918318,11.54,102.48,102.35,108.82974003]
[1646227918511,13.15556221,102.48,102.36,45.89299493]
[1646227918709,48.8418,102.46,102.36,45.89299493]
[1646227919410,14.6527,102.43,102.36,45.89299493]
[1646227919607,3.74815611,102.46,102.37,6.0]
[1646227919809,11.54,102.45,102.37,6.0]
[1646227920210,48.8525,102.44,102.32,40.21324003]
[1646227920410,14.6571,102.4,102.32,25.55914003]
[1646227920712,14.6571,102.4,102.32,2.54904003]
[1646227921115,11.54,102.43,102.32,2.54904003]
[1646227921311,6.0,102.39,102.31,47.2889]
[1646227921515,14.66,102.38,102.31,47.2889]
[1646227921713,20.66,102.38,102.31,47.2889]
[1646227922316,20.66,102.38,102.32,50.29174843]
[1646227922811,20.66,102.38,102.27,135.6217]
[1646227923013,24.54561329,102.38,102.27,135.6217]
[1646227923213,22.97592189,102.38,102.27,22.7217]
[1646227923414,20.91,102.38,102.27,22.7217]
[1646227923812,34.76592189,102.38,102.28,53.79273355]
[1646227925218,34.76592189,102.38,102.27,22.7217]
[1646227925416,14.6683,102.34,102.27,22.7217]
[1646227925617,14.6683,102.34,102.26,0.48872254]
[1646227926619,16.98422189,102.34,102.26,0.48872254]
[1646227926919,14.6683,102.34,102.26,0.48872254]
[1646227927119,14.9183,102.34,102.26,0.48872254]
[1646227927917,14.9183,102.34,102.26,6.48872254]
[1646227928120,14.9183,102.34,102.26,6.73872254]
[1646227928619,14.6683,102.34,102.26,6.73872254]
[1646227929118,14.6683,102.34,102.26,6.48872254]
[1646227929318,6.0,102.33,102.26,6.48872254]
[1646227929518,20.6674,102.33,102.26,6.48872254]
[1646227930125,20.9174,102.33,102.26,6.48872254]
[1646227931422,48.63093001,102.33,102.26,0.48872254]
[1646227931823,60.17093001,102.33,102.26,0.48872254]
[1646227932121,83.80092044,102.33,102.26,0.48872254]
[1646227932525,14.6732,102.31,102.26,0.48872254]
[1646227932922,6.0,102.3,102.26,0.48872254]
[1646227933123,64.3606,102.32,102.3,1.63110085]
[1646227933323,1.63,102.3,102.26,0.48872254]
[1646227933527,26.2181,102.29,102.26,2.254e-05]
[1646227933828,26.2181,102.29,102.16,23.1101]
[1646227933829,66.62055984,102.28,102.16,23.1101]
[1646227934026,11.54,102.27,102.14,22.6039]
[1646227934225,6.0,102.26,102.14,22.6039]
[1646227934426,11.54,102.25,102.15,52.53000311]
[1646227934625,26.2223,102.25,102.15,52.53000311]
[1646227934926,14.6823,102.25,102.15,52.53000311]
[1646227935125,6.0,102.26,102.16,6.0]
[1646227935328,39.25353001,102.28,102.17,49.45479753]
[1646227935526,6.0,102.27,102.17,49.45479753]
[1646227935725,2.31592189,102.25,102.14,22.6039]
[1646227935926,11.54,102.24,102.14,22.6039]
[1646227936525,39.51894146,102.24,102.14,22.6039]
[1646227936930,14.6867,102.22,102.14,22.6039]
[1646227937129,14.6867,102.22,102.12,48.2656]
[1646227937327,60.20172042,102.22,102.07,48.2976]
[1646227937727,60.20172042,102.22,102.07,53.2976]
[1646227937930,76.22373044,102.22,102.07,53.2976]
[1646227938131,174.28373044,102.22,102.07,48.2976]
[1646227938731,174.28373044,102.22,102.06,23.5446]
[1646227939330,333.13263044,102.22,102.02,48.63423035]
[1646227939530,243.77088014,102.2,102.02,47.1821]
[1646227939735,16.2751957,102.15,102.02,47.1821]
[1646227939930,11.54,102.14,102.02,47.1821]
[1646227940133,6.0,102.13,102.02,47.1821]
[1646227940330,6.0,102.13,102.03,49.45023417]
[1646227940733,6.0,102.14,102.03,49.45023417]
[1646227941733,20.6964,102.14,102.03,64.39643417]
[1646227942137,20.6964,102.14,102.04,6.0]
[1646227942335,20.6964,102.14,102.05,44.30339471]
[1646227942635,20.6964,102.14,102.07,48.42382826]
[1646227942833,20.6964,102.14,102.07,48.67382826]
[1646227943437,3.916,102.17,102.08,58.09]
[1646227943633,27.68950812,102.18,102.09,102.85947407]
[1646227943850,23.9002,102.21,102.09,103.10947407]
[1646227944053,3.915,102.2,102.11,55.78673371]
[1646227944252,3.915,102.2,102.11,212.18673371]
[1646227944454,26.95457771,102.22,102.11,212.18673371]
[1646227944652,3.915,102.23,102.11,229.42037374]
[1646227944855,26.95457771,102.24,102.16,98.06]
[1646227945054,30.86957771,102.26,102.17,47.19158833]
[1646227945254,6.0,102.25,102.17,47.44158833]
[1646227945654,3.912,102.24,102.17,47.44158833]
[1646227945852,18.5936,102.24,102.17,47.44158833]
[1646227946253,18.8436,102.24,102.17,47.44158833]
[1646227946453,18.5936,102.24,102.17,47.44158833]
[1646227947153,14.6816,102.24,102.17,47.44158833]
[1646227947955,14.6816,102.24,102.17,105.53158833]
[1646227948154,6.0,102.25,102.17,105.53158833]
[1646227948355,6.0,102.25,102.17,47.44158833]
[1646227948557,3.912,102.27,102.17,47.44158833]
[1646227948956,6.0,102.26,102.17,145.50158833]
[1646227949158,42.69948579,102.27,102.17,145.50158833]
[1646227949458,14.6775,102.27,102.19,101.44920878]
[1646227949655,14.6775,102.27,102.19,101.69920878]
[1646227950056,14.6775,102.27,102.19,199.75920878]
[1646227950756,14.6746,102.29,102.19,199.75920878]
[1646227951160,14.6746,102.29,102.21,58.09]
[1646227951358,14.6746,102.29,102.22,56.41386788]
[1646227951562,14.6746,102.29,102.22,56.66386788]
[1646227952061,41.35050768,102.29,102.22,56.41386788]
[1646227952263,41.35050768,102.29,102.22,56.66386788]
[1646227952558,41.35050768,102.29,102.22,56.41386788]